lending/lending_fUSD_20250501
["ID","MTS","AMOUNT","RATE_DAILY","PERIOD"]
[359498579,1746069042258,-2288.40245154,0.00038141,14]
[359498580,1746069042268,-540.23,0.00038161,2]
[359498581,1746069042278,-251.54971517,0.00038356,2]
[359498582,1746069042287,-150.75,0.00038356,2]
[359498583,1746069042297,-210.29303757,0.00038356,2]
[359498584,1746069042306,-176.59,0.00038356,30]
[359498586,1746069042319,-381.0,0.00038356,5]
[359498587,1746069042329,-2000.0,0.000384,2]
[359498588,1746069042339,-160.0,0.000387,57]
[359498589,1746069042348,-1000.0,0.00038787,2]
[359498590,1746069042359,-28276.7013695,0.0003889,4]
[359498591,1746069042369,-20797.22,0.000389,2]
[359498592,1746069042378,-732.16,0.000389,2]
[359498593,1746069042388,-931.63,0.00038933,2]
[359498594,1746069042397,-2288.40245154,0.00039003,14]
[359498595,1746069042407,-246.41118831,0.00039217,120]
[359498596,1746069042416,-207.0,0.0003925,30]
[359498597,1746069042426,-206.0,0.0003925,2]
[359498598,1746069042435,-500.0,0.00039266,60]
[359498599,1746069042444,-500.0,0.00039266,60]
[359498600,1746069042453,-500.0,0.00039266,60]
[359498601,1746069042463,-500.0,0.00039266,60]
[359498602,1746069042472,-500.0,0.00039266,60]
[359498603,1746069042481,-613.0,0.00039266,60]
[359498604,1746069042490,-200.0,0.00039266,13]
[359498605,1746069042499,-200.0,0.00039266,13]
[359498607,1746069042508,-200.0,0.00039266,13]
[359498609,1746069042517,-346.0,0.00039266,13]
[359498611,1746069042526,-201.0,0.00039293,30]
[359498612,1746069042536,-1525.280719,0.00039293,4]
[359498613,1746069042545,-498.13,0.00039614,2]
[359498614,1746069042556,-152.0,0.00039655,3]
[359498615,1746069042566,-160.0,0.000397,60]
[359498616,1746069042575,-3975.40454564,0.00039726,7]
[359498617,1746069042586,-150.75,0.00039726,2]
[359498618,1746069042596,-2288.40245154,0.00039866,15]
[359498619,1746069042605,-160.72490937,0.00039949,2]
[359498620,1746069042614,-21942.81471569,0.0003999,4]
[359498622,1746069043238,-1134.34345068,0.0003999,4]
[359498883,1746069206900,150.0,0.00032867,60]
[359498884,1746069272936,250.0,0.00017,2]
[359498885,1746069274550,179.01422001,0.00019,2]
[359498886,1746069274575,120.98577999,0.00019,2]
[359498899,1746069989669,200.0,0.00019313,2]
[359498920,1746070048547,200.0,0.0002,10]
[359498939,1746070189462,150.26,0.00019178,2]
[359498957,1746070232054,-1032.40186244,0.0001961,2]
[359498959,1746070232064,-250.0,0.0001968,2]
[359498961,1746070232074,-250.0,0.00019747,2]
[359498963,1746070232083,-623.2810712,0.00019749,2]
[359498965,1746070232095,-478.31588386,0.00019749,2]
[359498968,1746070232107,-98.40304494,0.00019749,2]
[359498971,1746070232116,-300.0,0.00019749,2]
[359498974,1746070232125,-692.01939334,0.0001975,2]
[359498977,1746070232141,-734.5470405,0.0001975,2]
[359498992,1746070232245,-1287.52093162,0.0001975,2]
[359499100,1746070237746,-5560.69098704,0.0001975,2]
[359499101,1746070237912,-3113.31490606,0.0001975,2]
[359499102,1746070237922,-500.0,0.00019773,2]
[359499103,1746070237931,-500.32924535,0.00019773,2]
[359499104,1746070237941,-500.0,0.00019773,2]
[359499105,1746070237950,-286047.59607102,0.000198,2]
[359499106,1746070237960,-160.30541442,0.000198,2]
[359499107,1746070237969,-200.0,0.00019825,2]
[359499108,1746070237979,-160.30541442,0.00019853,2]
[359499109,1746070237988,-3230.73332069,0.000199,2]
[359499110,1746070238000,-258.31633399,0.000199,2]
[359499112,1746070238009,-175.58625166,0.000199,2]
[359499114,1746070238019,-634.97921482,0.000199,2]
[359499121,1746070238078,-2154.38505206,0.000199,2]
[359499124,1746070238087,-192.96699383,0.000199,2]
[359499127,1746070238096,-2168.7627,0.000199,2]
[359499130,1746070238105,-563.8198,0.000199,2]
[359499132,1746070238115,-157.73745098,0.000199,3]
[359499135,1746070238124,-1523.29016702,0.000199,2]
[359499137,1746070238133,-160.30541442,0.00019905,2]
[359499139,1746070238142,-160.30541442,0.00019958,2]
[359499142,1746070238151,-170.0,0.00019973,2]
[359499145,1746070238161,-500.81204882,0.00019973,2]
[359499148,1746070238170,-500.0,0.00019973,2]
[359499151,1746070238180,-503.89540493,0.00019973,2]
[359499154,1746070238190,-314.52827151,0.00019973,2]
[359499156,1746070238198,-406.32957185,0.00019973,2]
[359499158,1746070238208,-500.0,0.00019973,2]
[359499160,1746070238218,-311.89112912,0.00019973,2]
[359499162,1746070238227,-39570.31088758,0.0001998,2]
[359499164,1746070238238,-154.11594364,0.0001999,2]
[359499166,1746070238247,-154.11594364,0.0001999,2]
[359499168,1746070238256,-323.27492623,0.00019999,2]
[359499170,1746070238265,-500.0,0.00019999,2]
[359499173,1746070238274,-4972134.88446748,0.0002,2]
[359499352,1746070240076,-736243.47571184,0.0002,2]
[359499361,1746070240149,-557.12500091,0.0002,2]
[359499363,1746070240161,-254.26315001,0.0002,2]
[359499693,1746070243431,-261.57648754,0.0002,2]
[359499927,1746070245840,-309.46828284,0.0002,2]
[359503589,1746070443430,150.0,0.0002,10]
[359503590,1746070660255,150.0,0.00019124,2]
[359503591,1746070734111,248.26,0.00019174,2]
[359503592,1746070800321,945.35,0.00017877,2]
[359503593,1746070807449,150.0,0.00032867,60]
[359503594,1746070814072,353.53666,0.0002977,44]
[359503596,1746070882503,215.92,0.00018981,2]
[359503597,1746070928494,200.0,0.00019198,2]
[359503598,1746071085710,23900.0,0.00018933,2]
[359503599,1746071092805,250.0,0.00017,2]
[359503600,1746071093867,300.0,0.00019,2]
[359503601,1746071119461,353.53666,0.0002516,35]
[359503602,1746071119503,353.53667,0.0002485,34]
[359503603,1746071119870,353.53666,0.0002579,36]
[359503604,1746071120076,353.53667,0.0002547,35]
[359503605,1746071120551,353.53667,0.000261,37]
[359503606,1746071173845,540.23,0.00019178,2]
[359503634,1746071266667,242.3,0.00018892,2]
[359503636,1746071351114,156.21,0.00018892,3]
[359503639,1746071385102,152.94478008,0.0003,30]
[359503648,1746071411820,272.42,0.00018895,2]
[359503653,1746071431971,-1852.42,0.00019402,2]
[359503654,1746071431982,-250.0,0.0001941,2]
[359503655,1746071431993,-200.0,0.00019435,2]
[359503656,1746071432004,-250.0,0.00019469,2]
[359503657,1746071432016,-238.85622132,0.000195,2]
[359503658,1746071432026,-48.84700657,0.00019671,2]
[359503664,1746071432250,-101.15299343,0.00019671,2]
[359503666,1746071432259,-198.36393471,0.00019699,2]
[359503681,1746071437855,-1001.63606529,0.00019699,2]
[359503682,1746071437865,-200.0,0.000197,2]
[359503683,1746071437876,-1000.0,0.000197,2]
[359503684,1746071437886,-42061.30923553,0.000197,2]
[359503685,1746071437896,-195.72951574,0.00019767,2]
[359503686,1746071437906,-510.10656106,0.00019873,2]
[359503687,1746071437916,-2168.7627,0.00019878,2]
[359503688,1746071437925,-1395.61986187,0.00019886,2]
[359503689,1746071437941,-1395.61986187,0.00019898,2]
[359503690,1746071437951,-92007.5872,0.000199,2]
[359503691,1746071437961,-3517.3706,0.000199,2]
[359503692,1746071437971,-177.39555671,0.000199,2]
[359503693,1746071437982,-5937.93979765,0.000199,2]
[359503694,1746071437992,-175.58625166,0.000199,2]
[359503695,1746071438002,-5937.93979765,0.00019904,2]
[359503696,1746071438012,-5937.93979765,0.00019908,2]
[359503697,1746071438022,-1395.61986187,0.0001991,2]
[359503698,1746071438032,-5937.93979765,0.00019912,2]
[359503699,1746071438043,-5937.93979765,0.00019916,2]
[359503700,1746071438053,-5937.93979765,0.0001992,2]
[359503701,1746071438064,-5937.93979765,0.00019924,2]
[359503702,1746071438074,-5937.93979765,0.00019928,2]
[359503703,1746071438084,-5937.93979765,0.00019932,2]
[359503704,1746071438094,-5937.93979765,0.00019936,2]
[359503705,1746071438107,-157.73745098,0.00019936,3]
[359503706,1746071438118,-170.0,0.00019973,2]
[359503707,1746071438127,-500.81204882,0.00019973,2]
[359503708,1746071438138,-500.0,0.00019973,2]
[359503709,1746071438148,-500.0,0.00019973,2]
[359503710,1746071438158,-373.44777472,0.00019973,2]
[359503711,1746071438168,-163.01328706,0.00019973,2]
[359503712,1746071438178,-500.60294482,0.00019973,2]
[359503713,1746071438188,-500.0,0.00019973,2]
[359503714,1746071438198,-500.0,0.00019973,2]
[359503715,1746071438208,-500.0,0.00019973,2]
[359503716,1746071438218,-503.89540493,0.00019973,2]
[359503717,1746071438228,-500.0,0.00019973,2]
[359503718,1746071438238,-311.89112912,0.00019973,2]
[359503719,1746071438248,-500.0,0.00019973,2]
[359503720,1746071438257,-314.52827151,0.00019973,2]
[359503721,1746071438267,-500.0,0.00019973,2]
[359503722,1746071438277,-500.0,0.00019973,2]
[359503723,1746071438286,-500.0,0.00019973,2]
[359503724,1746071438297,-154.11594364,0.0001999,2]
[359503725,1746071438306,-154.11594364,0.0001999,2]
[359503726,1746071438316,-500.0,0.00019999,2]
[359503727,1746071438327,-323.27492623,0.00019999,2]
[359503728,1746071438337,-1595981.60395744,0.0002,2]
[359503729,1746071438347,-36887.30487628,0.0002,2]
[359503730,1746071438356,-3174547.64638024,0.0002,2]
[359503741,1746071438498,-3310.36487646,0.0002,2]
[359503743,1746071438509,-4750.87659996,0.0002,2]
[359503757,1746071440246,-3310863.31572366,0.0002,2]
[359503758,1746071440256,-215.92,0.00020036,2]
[359503759,1746071440266,-945.35,0.00020141,2]
[359503760,1746071440275,-5530.3059247,0.000202,2]
[359503761,1746071440284,-300.0,0.00020259,2]
[359503762,1746071440294,-200.0,0.00020548,5]
[359503763,1746071440303,-5530.30592455,0.00020797,3]
[359503764,1746071440313,-350.0,0.00021,2]
[359503765,1746071440322,-215.92,0.0002109,2]
[359503766,1746071440331,-1031.42,0.000212,2]
[359503767,1746071440341,-200.0,0.00021342,2]
[359503768,1746071440350,-250.0,0.00021342,2]
[359503769,1746071440359,-250.0,0.00021342,2]
[359503770,1746071440369,-5122.4,0.0002137,2]
[359503771,1746071440378,-1680.0,0.0002156,2]
[359503772,1746071440388,-192.96699383,0.00021567,2]
[359503773,1746071440398,-300.0,0.00021629,2]
[359503774,1746071440407,-200.0,0.00021669,2]
[359503775,1746071440416,-5530.30592455,0.00021693,3]
[359503776,1746071440426,-158.64,0.00021701,2]
[359503777,1746071440436,-158.64,0.00021723,2]
[359503778,1746071440445,-158.64,0.00021745,2]
[359503779,1746071440454,-175.1,0.00021757,2]
[359503780,1746071440463,-158.64,0.00021766,2]
[359503781,1746071440472,-158.64,0.00021788,2]
[359503782,1746071440481,-299.31515246,0.00021789,2]
[359503783,1746071440491,-158.64,0.0002181,2]
[359503784,1746071440500,-157.8,0.00021917,2]
[359503785,1746071440509,-1078.65763341,0.00022,14]
[359503786,1746071440518,-215.92,0.00022145,2]
[359503787,1746071440528,-167.54066405,0.00022273,2]
[359503788,1746071440537,-192.96699383,0.000224,2]
[359503789,1746071440546,-945.35,0.00022405,2]
[359503790,1746071440555,-2900.0,0.000225,15]
[359503791,1746071440564,-999.99,0.00022562,2]
[359503792,1746071440573,-694.02,0.00022562,2]
[359503793,1746071440582,-2845.72,0.00022562,2]
[359503794,1746071440591,-9999.99,0.00022562,2]
[359503795,1746071440601,-434.96,0.00022562,2]
[359503796,1746071440610,-1010.78,0.00022562,2]
[359503797,1746071440619,-1129.22,0.00022562,2]
[359503798,1746071440628,-150.99,0.00022562,2]
[359503799,1746071440637,-499.99,0.00022562,2]
[359503800,1746071440646,-3194.74,0.00022562,2]
[359503801,1746071440657,-5530.30592455,0.0002259,4]
[359503802,1746071440666,-418.73823208,0.00022703,2]
[359503803,1746071440675,-500.0,0.00022871,2]
[359503804,1746071440684,-160.45172935,0.00022871,2]
[359503805,1746071440694,-500.0,0.00022871,2]
[359503806,1746071440703,-500.0,0.00022871,2]
[359503807,1746071440712,-500.59002653,0.00022871,2]
[359503808,1746071440721,-315.56371199,0.00022871,2]
[359503809,1746071440730,-500.0,0.00022871,2]
[359503810,1746071440739,-500.43332278,0.00022871,2]
[359503811,1746071440748,-500.0,0.00022871,2]
[359503812,1746071440757,-500.0,0.00022871,2]
[359503813,1746071440767,-500.0,0.00022871,2]
[359503814,1746071440776,-500.0,0.00022871,2]
[359503815,1746071440788,-500.0,0.00022871,2]
[359503816,1746071440799,-500.64631312,0.00022871,2]
[359503817,1746071440811,-330.87895996,0.00022871,2]
[359503819,1746071440820,-500.0,0.00022871,2]
[359503821,1746071440829,-270.89897558,0.00022871,2]
[359503823,1746071440839,-505.45280058,0.00022871,2]
[359503825,1746071440849,-500.0,0.00022871,2]
[359503827,1746071440858,-187.20036533,0.00022871,2]
[359503828,1746071440867,-501.41990566,0.00022871,2]
[359503830,1746071440877,-500.0,0.00022871,2]
[359503832,1746071440886,-500.48107556,0.00022871,2]
[359503834,1746071440896,-500.0,0.00022871,2]
[359503836,1746071440906,-162.68185268,0.00022871,2]
[359503838,1746071440915,-508.9980583,0.00022871,2]
[359503840,1746071440924,-211.24478406,0.00022871,2]
[359503842,1746071440939,-500.0,0.00022871,2]
[359503844,1746071440949,-175.58625166,0.000229,2]
[359503847,1746071440968,-1627.01449967,0.00023,15]
[359503849,1746071440979,-1000.0,0.00023,14]
[359503851,1746071440989,-400.0,0.00023,2]
[359503853,1746071440999,-305.82,0.00023014,2]
[359503855,1746071441009,-304.42,0.00023014,2]
[359503857,1746071441019,-302.81,0.00023014,2]
[359503859,1746071441029,-301.97,0.00023014,2]
[359503861,1746071441039,-300.71,0.00023014,2]
[359503863,1746071441049,-303.06,0.00023014,2]
[359503865,1746071441059,-300.78,0.00023014,2]
[359503867,1746071441068,-301.13,0.00023014,2]
[359503869,1746071441078,-301.77,0.00023014,2]
[359503871,1746071441088,-304.43,0.00023014,2]
[359503873,1746071441098,-304.3,0.00023014,2]
[359503875,1746071441108,-303.61,0.00023014,2]
[359503877,1746071441117,-302.1,0.00023014,2]
[359503879,1746071441126,-304.15,0.00023014,2]
[359503881,1746071441137,-305.98,0.00023014,2]
[359503883,1746071441146,-305.64,0.00023014,2]
[359503885,1746071441156,-300.5,0.00023014,2]
[359503887,1746071441165,-301.41,0.00023014,2]
[359503890,1746071441175,-302.53,0.00023014,2]
[359503892,1746071441185,-305.23,0.00023014,2]
[359503894,1746071441194,-300.87,0.00023014,2]
[359503896,1746071441203,-303.14,0.00023014,2]
[359503897,1746071441213,-304.72,0.00023014,2]
[359503899,1746071441222,-305.17,0.00023014,2]
[359503901,1746071441232,-500.0,0.0002303,2]
[359503903,1746071441241,-500.0,0.0002303,2]
[359503905,1746071441251,-500.0,0.0002303,2]
[359503907,1746071441261,-300.51,0.00023034,2]
[359503909,1746071441271,-300.61,0.00023034,2]
[359503911,1746071441281,-301.08,0.00023034,2]
[359503913,1746071441291,-302.14,0.00023034,2]
[359503915,1746071441300,-305.02,0.00023034,2]
[359503918,1746071441310,-301.76,0.00023034,2]
[359503919,1746071441320,-303.76,0.00023034,2]
[359503921,1746071441330,-304.84,0.00023034,2]
[359503923,1746071441339,-302.73,0.00023034,2]
[359503925,1746071441349,-300.92,0.00023034,2]
[359503927,1746071441359,-305.91,0.00023034,2]
[359503929,1746071441368,-303.23,0.00023034,2]
[359503930,1746071441377,-303.89,0.00023034,2]
[359503931,1746071441387,-215.92,0.00023199,2]
[359503932,1746071441395,-192.96699383,0.00023233,2]
[359503933,1746071441404,-157.8,0.00023287,2]
[359503934,1746071441413,-301.77,0.00023299,2]
[359503935,1746071441422,-301.93,0.00023299,2]
[359503936,1746071441432,-300.1,0.00023299,2]
[359503937,1746071441442,-305.84,0.00023299,2]
[359503938,1746071441452,-302.19,0.00023299,2]
[359503939,1746071441462,-302.66,0.00023299,2]
[359503940,1746071441678,-305.34,0.00023299,2]
[359503941,1746071441703,-305.4,0.00023299,2]
[359503942,1746071441712,-5530.30592455,0.00023486,4]
[359503943,1746071441721,-2351.0,0.00023597,2]
[359503944,1746071441732,-150.26,0.00023601,2]
[359503945,1746071441741,-750.93,0.00023836,2]
[359503946,1746071441750,-1942.0,0.00024,2]
[359503947,1746071441759,-1337.56187236,0.00024,14]
[359503948,1746071441769,-5969.00166255,0.00024,2]
[359503949,1746071441778,-192.96699383,0.00024067,2]
[359503950,1746071441787,-250.0,0.00024196,2]
[359503951,1746071441797,-215.92,0.00024254,2]
[359503952,1746071441806,-5530.30592455,0.00024383,5]
[359503953,1746071441815,-150.01986085,0.0002465,2]
[359503954,1746071441824,-157.8,0.00024657,2]
[359503955,1746071441834,-1000.0,0.00024658,2]
[359503956,1746071441845,-945.35,0.00024668,2]
[359503957,1746071441854,-501.61179285,0.00024773,2]
[359503958,1746071441863,-500.0,0.00024773,2]
[359503959,1746071441872,-604385.00292,0.000248,3]
[359503960,1746071441882,-300.0,0.00024873,2]
[359503961,1746071441891,-192.96699383,0.000249,2]
[359503962,1746071441901,-147961.12624772,0.000249,3]
[359503980,1746071445923,-1714.1674689,0.000199,2]
[359503981,1746071446156,-3128.97165648,0.000199,2]
[359503988,1746071446466,-6883.19177,0.000199,2]
[359503990,1746071446477,-11788.8873978,0.000199,2]
[359503992,1746072059255,302.09687286,0.00032876,60]
[359503993,1746072357790,1417.3,0.00032877,60]
[359503995,1746072410954,150.0,0.00032867,60]
[359504012,1746072541733,403.0,0.00032876,60]
[359504013,1746072552371,154.28,0.00019188,2]
[359504015,1746072601561,1899.5,0.00032877,60]
[359504018,1746072631960,-159.65317865,0.000197,2]
[359504019,1746072631969,-250.0,0.00019725,2]
[359504020,1746072631980,-562.18582518,0.000198,2]
[359504376,1746072638262,-2355.93323927,0.000198,2]
[359504377,1746072638274,-263.87137854,0.000198,2]
[359504396,1746072640522,-1818.00955701,0.000198,2]
[359504397,1746072640532,-167.55741812,0.000198,2]
[359504398,1746072640542,-1000.0,0.0001981,2]
[359504399,1746072640551,-1200.0,0.00019872,2]
[359504400,1746072640561,-500.92279031,0.00019873,2]
[359504401,1746072640570,-300.0,0.00019899,2]
[359504402,1746072640579,-1013.51023456,0.000199,2]
[359504404,1746072640697,-581.34790231,0.000199,2]
[359504405,1746072640708,-607.36,0.000199,2]
[359504432,1746072643147,-10686.56000011,0.000199,2]
[359504460,1746072646338,-2264.49513587,0.000199,2]
[359504463,1746072646446,-6318.63506158,0.000199,2]
[359504465,1746072646458,-16049.90189282,0.000199,2]
[359504470,1746072693512,508.37,0.000328,60]
[359504471,1746072705475,508.37,0.000328,60]
[359504472,1746072713747,508.37,0.000328,60]
[359504473,1746072721131,508.37,0.000328,60]
[359504474,1746072732241,508.37,0.000328,60]
[359504477,1746072779573,508.3699553,0.000328,60]
[359504479,1746072818931,508.37,0.000328,60]
[359504480,1746072826565,508.37,0.000328,60]
[359504481,1746072833705,508.3673,0.000328,60]
[359504482,1746072841612,508.38,0.000328,60]
[359504483,1746072849685,508.37,0.000328,60]
[359504484,1746072856085,508.37,0.000328,60]
[359504485,1746072862438,508.37,0.000328,60]
[359504486,1746072869339,508.37,0.000328,60]
[359504487,1746072900896,508.37,0.000328,60]
[359504488,1746072909520,508.37,0.000328,60]
[359504489,1746072915287,508.37,0.000328,60]
[359504490,1746072915619,250.0,0.00017,2]
[359504491,1746072916742,300.0,0.00019,2]
[359504492,1746072967844,508.37,0.000328,60]
[359504496,1746072973850,508.37,0.000328,60]
[359504497,1746072981302,508.37,0.000328,60]
[359504498,1746072987307,508.37,0.000328,60]
[359504499,1746072996795,508.37,0.000328,60]
[359504500,1746073007474,508.37,0.000328,60]
[359504501,1746073016129,508.37,0.000328,60]
[359504502,1746073022054,508.37,0.000328,60]
[359504503,1746073027897,508.37,0.000328,60]
[359504504,1746073034015,508.37,0.000328,60]
[359504505,1746073045723,360.0,0.00032877,60]
[359504506,1746073048627,508.37,0.000325,60]
[359504507,1746073055145,508.37,0.000328,60]
[359504508,1746073061198,508.25,0.000328,60]
[359504509,1746073070559,508.37,0.000328,60]
[359504510,1746073077837,508.25,0.000328,60]
[359504511,1746073086209,508.37,0.000328,60]
[359504512,1746073092761,508.37,0.000328,60]
[359504513,1746073212879,302.0,0.00032877,60]
[359504516,1746073319749,260.76473824,0.000328,60]
[359504560,1746073832302,-298.66,0.000198,2]
[359504561,1746073832314,-250.0,0.0001985,2]
[359504562,1746073832323,-208.19741565,0.000199,2]
[359504563,1746073832333,-411.8605949,0.00019959,2]
[359504564,1746073832663,-329.76386651,0.00019959,2]
[359504565,1746073832675,-458.37553859,0.00019959,2]
[359504566,1746073832687,-392.51644141,0.0001996,2]
[359504574,1746073838442,-1700.3237879,0.0001996,2]
[359504575,1746073838455,-2035.765428,0.0001996,2]
[359504576,1746073838466,-2172.528378,0.0001996,2]
[359504577,1746073838480,-2052.2052,0.0001996,2]
[359504578,1746073838498,-2063.57616,0.0001996,2]
[359504579,1746073838529,-2382.33383197,0.0001996,2]
[359504580,1746073838539,-500.0,0.00019973,2]
[359504581,1746073838549,-500.0,0.00019973,2]
[359504582,1746073838559,-500.0,0.00019973,2]
[359504583,1746073838568,-503.89540493,0.00019973,2]
[359504584,1746073838579,-500.0,0.00019973,2]
[359504585,1746073838588,-311.89112912,0.00019973,2]
[359504591,1746073838778,-206.54884422,0.00019973,2]
[359504592,1746073838834,-293.45115578,0.00019973,2]
[359504593,1746073838843,-500.0,0.00019973,2]
[359504595,1746073838852,-314.52827151,0.00019973,2]
[359504596,1746073838861,-39570.31088758,0.0001998,2]
[359504597,1746073838871,-154.11594364,0.0001999,2]
[359504598,1746073838880,-154.11594364,0.0001999,2]
[359504599,1746073838889,-199.55341215,0.00019999,2]
[359504600,1746073838898,-207.20699319,0.00019999,2]
[359504601,1746073838908,-500.0,0.00019999,2]
[359504602,1746073838916,-500.0,0.00019999,2]
[359504603,1746073838925,-500.0,0.00019999,2]
[359504604,1746073838935,-500.0,0.00019999,2]
[359504605,1746073838945,-323.27492623,0.00019999,2]
[359504606,1746073838955,-500.0,0.00019999,2]
[359504607,1746073838964,-10000.0,0.0002,2]
[359504608,1746073838973,-4761999.69535473,0.0002,2]
[359504638,1746073844988,-2615.06841818,0.0002,2]
[359504647,1746073846296,-5111.37686811,0.0002,2]
[359504648,1746073846310,-28856.89699659,0.0002,2]
[359504649,1746073846322,-20386.52753663,0.0002,2]
[359504650,1746073846436,-6130.70127106,0.0002,2]
[359504651,1746073846499,-5444.76606561,0.0002,2]
[359504652,1746073846512,-3851.27602168,0.0002,2]
[359504653,1746073846525,-3286.6366773,0.0002,2]
[359504684,1746073848824,150.0,0.0003,30]
[359504685,1746073995160,159.86,0.00019186,2]
[359504686,1746074011524,150.0,0.00032867,60]
[359504687,1746074073345,370.54987029,0.00032876,60]
[359504699,1746074365786,887.28,0.00018311,2]
[359504700,1746074737320,250.0,0.00017,2]
[359504701,1746074738393,300.0,0.00019,2]
[359504740,1746074913531,679.0,0.00030137,120]
[359504744,1746075031523,-304.0,0.00019885,2]
[359504745,1746075031535,-481.27322726,0.00019885,2]
[359504746,1746075037550,-299.25,0.00019885,2]
[359504747,1746075037662,-115.47677274,0.00019885,2]
[359504748,1746075037673,-250.0,0.00019885,2]
[359504749,1746075037682,-6550.76068891,0.00019886,2]
[359504750,1746075037691,-182.17273865,0.00019886,2]
[359504751,1746075037701,-155.06887355,0.00019886,2]
[359504752,1746075037711,-175.58625166,0.00019886,2]
[359504753,1746075037720,-150.9687,0.00019886,2]
[359504754,1746075037730,-3517.3706,0.00019886,2]
[359504755,1746075037739,-2500.0,0.00019886,2]
[359504756,1746075037748,-11720.6259,0.00019886,2]
[359504757,1746075037758,-77013.2571,0.00019886,2]
[359504758,1746075037768,-1000.0,0.00019886,2]
[359504759,1746075037777,-1098.32957861,0.00019899,2]
[359504760,1746075037786,-232.95820653,0.000199,2]
[359504761,1746075037796,-33649.88861461,0.000199,2]
[359504762,1746075037805,-612.2993,0.000199,2]
[359504763,1746075037815,-1523.29016702,0.000199,2]
[359504764,1746075037824,-157.73745098,0.000199,3]
[359504765,1746075037834,-155.06887354,0.00019913,2]
[359504766,1746075037844,-155.06887354,0.0001994,2]
[359504767,1746075037853,-155.06887354,0.00019966,2]
[359504768,1746075037863,-1000.0,0.0001997,2]
[359504769,1746075037873,-1000.0,0.0001997,2]
[359504770,1746075037883,-170.0,0.00019973,2]
[359504771,1746075037892,-500.81204882,0.00019973,2]
[359504772,1746075037902,-293.45115578,0.00019973,2]
[359504773,1746075037911,-500.0,0.00019973,2]
[359504774,1746075037920,-500.0,0.00019973,2]
[359504775,1746075037930,-500.0,0.00019973,2]
[359504777,1746075037939,-503.05435588,0.00019973,2]
[359504779,1746075037949,-500.0,0.00019973,2]
[359504781,1746075037958,-314.52827151,0.00019973,2]
[359504783,1746075037967,-158.42,0.00019976,2]
[359504785,1746075037977,-158.42,0.00019976,2]
[359504787,1746075037987,-158.42,0.00019976,2]
[359504789,1746075037996,-158.42,0.00019976,2]
[359504791,1746075038006,-158.42,0.00019976,2]
[359504793,1746075038015,-158.42,0.00019976,2]
[359504796,1746075038024,-1376.0394975,0.00019986,2]
[359504798,1746075038034,-268729.2766622,0.00019986,2]
[359504800,1746075038044,-204425.4997532,0.00019986,2]
[359504802,1746075038053,-16649.5382402,0.00019986,2]
[359504804,1746075038062,-19864.1162769,0.00019986,2]
[359504806,1746075038072,-10155.1464805,0.00019986,2]
[359504808,1746075038081,-837.14507328,0.00019986,2]
[359504810,1746075038091,-25810.4369409,0.00019986,2]
[359504812,1746075038100,-468.78473509,0.0001999,2]
[359504814,1746075038109,-468.78473509,0.0001999,2]
[359504816,1746075038119,-155.06887354,0.00019993,2]
[359504818,1746075038128,-887723.3361165,0.0002,2]
[359504820,1746075038138,-3179973.02066013,0.0002,2]